Cogmind - Beta 15 @@@ ROGUE MODE // 2025.08.28 @ 14:29:35 Player: H3-RMN Result: Destroyed by Y-72 Warden with Railgun Performance ------------- Evolutions (7) 3500 Regions Visited (24) 4800 Robots Destroyed (494) 2470 Value Destroyed (23607) 23607 Prototype IDs (95) 1900 Alien Tech Used (0) 0 Bonus (8979) 8979 TOTAL SCORE: 45256 Bonus ------- High Alert Combat Kills 5068 Follower Combat Kills 275 Entered Garrisons 1000 Used RIF Installer 1500 Entered DSFs 1000 Aligned with FarCom 300 Friendly Fire -164 Cogmind --------- Core Integrity 0/1300 Matter 264/300 Energy 454/650 System Corruption 76% Temperature Cool (0) Movement Walking (470) Ox3 Location -3/Garrison Parts ------- > --- POWER (2) -------- Micro Antimatter Reactor > --- PROPULSION (8) --- Light Armored Exoskeleton > --- UTILITY (7) ------ Advanced Coolant Injector Huge Storage Unit Advanced Energy Well Active Sensor Suite > --- WEAPON (4) ------- Compact HERF Cannon Proton Missile Launcher > --- INVENTORY (25) --- Advanced Heat Sink Advanced Heat Sink Advanced Cooling System Improved Transmission Jammer Graphene Brace Experimental System Shield Relay Coupler [NC] (32) Relay Coupler [Cutter] (30) Relay Coupler [Grunt] (30) Relay Coupler [Sentry] (20) Relay Coupler [Demolisher] (29) Relay Coupler [Hunter] (21) Relay Coupler [Heavy] (14) Trap Reconfigurator Fusion Bomb Launcher Fusion Bomb Launcher Advanced Micro-nuke Launcher Advanced Remote Datajack Peak State ------------ > --- POWER ------------ Particle Reactor Micro Antimatter Reactor > --- PROPULSION ------- Light Armored Exoskeleton Advanced VSS Leg Improved Thunder Leg Enhanced Biometal Leg Myomer Exoskeleton > --- UTILITY ---------- Improved Cooling System Advanced Coolant Injector Huge Storage Unit Active Sensor Suite Improved Powered Armor > --- WEAPON ----------- Heavy Tesla Rifle Cooled Plasma Rifle Heavy Quantum Rifle Compact HERF Cannon > --- INVENTORY -------- Myomer Leg Advanced Cooling System Advanced Energy Well Precision Matter Filter Heavy Armor Plating Graphene Brace Experimental System Shield Relay Coupler [Grunt] Relay Coupler [Heavy] Trap Reconfigurator Cooled Plasma Rifle Advanced Variable Charge Gun Compact HERF Cannon Matter Neutralizer Nova Cannon Firepult Helical Railgun Proton Missile Launcher Fusion Bomb Launcher Fusion Bomb Launcher Advanced Micro-nuke Launcher Advanced Remote Datajack [Rating: 185] Favorites ----------- Power Micro Antimatter Reactor Engine Reinforced Deuterium Engine Power Core Reinforced Fission Core Reactor Micro Antimatter Reactor Propulsion Light Armored Exoskeleton Treads Armored Treads Leg Light Armored Exoskeleton Wheel Armored Huge Wheel Utility Huge Storage Unit Device Improved Cooling System Storage Huge Storage Unit Processor Core Analyzer Hackware Hacking Suite Protection Hardened Medium Armor Plating Weapon Gatling Laser Energy Gun Gatling Laser Energy Cannon Compact HERF Cannon Ballistic Gun Gauss Rifle Ballistic Cannon Heavy Mass Driver Launcher Fusion Bomb Launcher Special Weapon Remote Datajack Impact Weapon Hammer Special Melee Weapon Datajack Build | -11 -10 -10 -10 -9 -8 -8 -7 -7 -7 -7 -7 -6 -6 -6 -6 -5 -5 -5 -4 -4 -3 -3 -3 -3 ------- Run | Yrd Mat Min Exi Min Mat Gar Fac Was Fac Gar Fac Fac Was Fac DSF Fac Gar Fac Fac DSF Res Gar Tes Gar Slots Evolved 14 | . . . . . 4 . 2 . . . . 2 . . . 2 . . 2 . 2 . . . Power 1 | . . . . . . . . . . . . . . . . . . . 1 . . . . . Propulsion 6 | . . . . . 2 . . . . . . 2 . . . 2 . . . . . . . . Utility 5 | . . . . . 2 . 1 . . . . . . . . . . . 1 . 1 . . . Weapon 2 | . . . . . . . 1 . . . . . . . . . . . . . 1 . . . Parts Attached 352 | 8 7 6 6 8 47 14 27 9 29 2 1 12 8 1 7 3 19 7 . 17 68 9 23 14 Power 43 | 1 . 1 . 1 5 . 3 3 2 . . . . . 2 1 2 1 . 4 10 1 3 3 Engine 12 | 1 . 1 . 1 5 . 1 . 1 . . . . . . 1 . . . . . . 1 . Core 13 | . . . . . . . 2 2 1 . . . . . 2 . 1 1 . 3 1 . . . Reactor 18 | . . . . . . . . 1 . . . . . . . . 1 . . 1 9 1 2 3 Propulsion 88 | 2 1 1 1 3 20 5 5 1 4 . . 1 . . 1 1 4 2 . 3 23 3 5 2 Treads 24 | . . 1 . 3 11 2 3 1 . . . . . . . . . 1 . . 2 . . . Leg 46 | . . . . . 2 . . . 2 . . 1 . . 1 1 4 1 . 3 21 3 5 2 Wheel 18 | 2 1 . 1 . 7 3 2 . 2 . . . . . . . . . . . . . . . Hover . | . . . . . . . . . . . . . . . . . . . . . . . . . Flight . | . . . . . . . . . . . . . . . . . . . . . . . . . Utility 118 | 2 2 . . 3 13 6 10 2 14 1 1 9 2 . 2 1 7 4 . 4 18 3 9 5 Device 40 | 1 . . . 1 6 1 1 . 6 . 1 2 2 . . . 3 2 . 1 7 . 3 3 Storage 9 | 1 1 . . . 1 . . . 2 . . . . . . . 1 . . 1 2 . . . Processor 8 | . . . . . 1 1 1 . 2 . . 1 . . 1 . . . . . . . 1 . Hackware 20 | . . . . . . . 5 . . . . 4 . . . 1 2 . . 1 5 1 1 . Protection 41 | . 1 . . 2 5 4 3 2 4 1 . 2 . . 1 . 1 2 . 1 4 2 4 2 Artifact . | . . . . . . . . . . . . . . . . . . . . . . . . . Weapon 103 | 3 4 4 5 1 9 3 9 3 9 1 . 2 6 1 2 . 6 . . 6 17 2 6 4 Energy Gun 44 | 2 3 3 . . 5 . 2 2 4 1 . 2 4 . 1 . 3 . . . 7 1 4 . Energy Cannon 14 | . . . . . 1 . 2 . . . . . . . . . 1 . . 2 6 1 . 1 Ballistic Gun 28 | 1 . 1 2 . 3 2 3 1 4 . . . 1 . 1 . 1 . . 4 1 . 1 2 Ballistic Cannon 4 | . . . 1 . . . 1 . . . . . . 1 . . . . . . 1 . . . Launcher 7 | . . . . 1 . 1 . . 1 . . . . . . . 1 . . . 1 . 1 1 Special Weapon 4 | . 1 . . . . . 1 . . . . . 1 . . . . . . . 1 . . . Impact Weapon 1 | . . . 1 . . . . . . . . . . . . . . . . . . . . . Slashing Weapon . | . . . . . . . . . . . . . . . . . . . . . . . . . Piercing Weapon . | . . . . . . . . . . . . . . . . . . . . . . . . . Special Melee Weapon 1 | . . . 1 . . . . . . . . . . . . . . . . . . . . . Unidentified Prototypes 24 | . 1 . . . 6 . 1 . 4 . . . 2 . . . . . . . 1 . 8 1 Corrupted Parts 4 | . . . . . . . . . . . . . . . . . . . . 1 . . 3 . System Corruption 31 | . . . . . . . . . . . . . . . . . . . . 2 . . 29 . Parts Lost 133 | . 2 2 1 3 9 4 9 . 7 3 . 1 . . 1 . 7 1 . 7 27 8 11 30 Power 10 | . . . . . 1 . 1 . . . . . . . . . 1 . . . . 1 2 4 Propulsion 40 | . 1 . 1 1 3 1 3 . 1 . . . . . . . 1 1 . 2 11 3 4 7 Utility 43 | . . . . 2 2 2 4 . 4 1 . 1 . . . . 2 . . 2 8 3 5 7 Weapon 40 | . 1 2 . . 3 1 1 . 2 2 . . . . 1 . 3 . . 3 8 1 . 12 Highest Loss Streak 14 | . 1 2 1 2 3 2 5 . 2 2 . 1 . . 1 . 3 1 . 6 8 7 4 14 To Critical Strikes 2 | . . . . . . . . . . 1 . . . . . . . . . 1 . . . . Average Backups 20 | 2 18 23 23 22 22 23 22 23 21 16 17 17 17 18 15 19 20 20 20 19 20 19 20 17 Power . | . 1 1 1 1 1 . . . . . . . 1 1 . . . . . . 1 . . . Propulsion 2 | 1 3 5 5 3 3 1 . 2 1 2 2 1 1 1 1 3 2 2 2 2 1 3 1 . Utility 9 | . 3 6 7 6 9 14 13 11 11 9 10 9 7 7 5 5 9 11 9 9 10 9 9 10 Weapon 7 | . 9 9 9 10 8 7 7 9 6 4 5 6 8 8 7 9 9 7 9 8 6 5 8 5 Tool/Special . | . . . . . . . . . . . . . . . . . . . . . . . . . Unused Backups 80 | . 3 2 2 4 15 3 . 3 8 . . 4 . . 3 . 5 1 . 1 6 . 9 11 Power 3 | . . . . . 1 . . . 1 . . . . . . . . . . . . . 1 . Propulsion 13 | . 2 . . . 7 . . . 1 . . . . . . . . . . . 1 . 2 . Utility 42 | . . . 2 1 2 2 . 3 4 . . 1 . . 3 . 5 1 . . 5 . 2 11 Weapon 21 | . 1 2 . 3 5 1 . . 2 . . 3 . . . . . . . 1 . . 3 . Tool/Special 1 | . . . . . . . . . . . . . . . . . . . . . . . 1 . Average Slot Usage (%) 87 | . 98 100 90 99 94 96 91 85 82 81 84 79 80 80 75 66 77 82 84 83 88 88 83 53 Engine 5 | . 14 14 14 14 8 9 4 2 1 7 7 6 6 6 2 . 2 . . . . . . . Core 1 | . . . . . . . 2 . 4 . . . . . 3 4 . 2 5 7 2 . . . Reactor 1 | . . . . . . . . 4 . . . . . . . . 2 2 . . 6 8 8 5 Treads 8 | . . 11 5 24 17 23 12 8 6 . . . . . . . . 1 5 2 2 . . . Leg 11 | . . . . . . . . . 1 15 15 20 20 20 20 23 31 33 26 28 26 33 26 10 Wheel 6 | . 27 16 22 3 14 11 8 7 6 . . . . . . . . . . . . . . . Device 7 | . 3 . . . 8 9 5 . 7 15 15 10 6 11 6 4 4 6 15 11 11 12 13 12 Storage 8 | . 14 14 14 14 9 9 7 7 7 7 7 6 6 6 6 5 5 5 5 6 5 8 5 7 Processor 3 | . . . . . 6 . 10 7 5 . . 1 . . 5 5 5 5 5 5 4 4 . . Hackware 2 | . . . . . . . 4 15 6 . . 2 6 6 . . . . . . 5 . 1 . Protection 8 | . 10 14 14 13 10 14 8 7 7 13 15 11 13 7 8 5 4 4 5 4 3 2 5 1 Energy Gun 10 | . 26 25 . . 10 8 5 9 8 20 23 20 14 19 18 11 13 5 5 . 5 2 8 3 Energy Cannon 1 | . . . . . . . 3 . . . . . . . . . . . . 5 4 10 7 5 Ballistic Gun 6 | . . 2 3 27 6 9 11 12 11 1 . . . . . 2 2 11 10 8 4 . . 1 Peak Build Rating 185 | 7 14 15 16 26 48 46 59 67 67 58 60 68 68 65 74 84 97 97 90 120 144 147 175 185 Average Rating 67 | 5 12 13 12 18 40 43 54 62 63 57 59 65 63 64 69 80 89 91 90 99 127 143 152 128 On Entrance 65 | . 7 14 14 14 19 43 46 55 66 57 58 60 64 63 65 74 79 96 87 90 119 141 145 172 Naked Turns . | . . . . . . . . . . . . . . . . . . . . . . . . . Heaviest Build 166 | 15 94 96 96 96 115 125 115 118 136 85 86 86 76 76 86 126 142 142 114 138 157 161 166 163 Greatest Support 206 | 32 32 26 32 46 83 80 56 28 70 60 60 90 90 90 90 120 128 128 98 153 186 175 206 206 Greatest Overweight (x) 9 | . 5 5 5 9 8 9 4 4 4 1 1 . . . . 1 1 1 1 1 2 1 1 4 Average Overweight (x) 2 | . 2 4 2 3 3 4 3 3 3 1 1 . . . . . . . 1 . . . . 1 Largest Inventory Capacity 25 | 8 25 25 25 25 25 25 25 25 25 20 20 20 20 20 20 25 25 25 25 25 25 25 25 25 Average Capacity 24 | 7 23 25 25 25 25 25 25 25 24 20 20 20 20 20 20 24 25 25 25 25 25 25 25 25 Most Carried 25 | 5 25 25 25 25 25 25 25 25 25 20 20 20 20 20 20 24 25 25 24 25 25 25 25 25 Average Carried 23 | 2 18 24 24 24 24 24 24 24 24 19 20 19 19 20 18 22 24 24 24 23 23 23 24 18 Final Capacity 25 | 8 25 25 25 25 25 25 25 25 20 20 20 20 20 20 20 25 25 25 25 25 25 25 25 25 Final Carried 25 | 5 25 24 25 25 25 25 25 25 20 20 20 20 20 20 20 24 25 25 24 24 25 25 25 18 Class Distribution -------------------- 27% | Mutant 18% | Tank 10% | Scavenger-Gunner 9% | Scavenger-Mutant 9% | Gunner 8% | Scavenger-Tank 3% | Bothacker-Gunner Dominant Class ---------------- Mutant | -10/Materials Mutant | -10/Mines Mutant | -10/Exiles Mutant | -9/Mines Mutant | -8/Materials Scavenger-Mutant | -8/Garrison Bothacker-Gunner | -7/Factory Scavenger-Tank | -7/Waste Tank | -7/Factory Tank | -7/Garrison Tank | -7/Factory Tank | -6/Factory Machinist-Tank | -6/Waste Tank | -6/Factory Gunner | -6/DSF Machinist-Gunner | -5/Factory Gunner | -5/Garrison Scavenger-Gunner | -5/Factory Scavenger-Gunner | -4/Factory Gunner | -4/DSF Scavenger-Gunner | -3/Research Scavenger-Tank | -3/Garrison Scavenger-Tank | -3/Testing Skirmisher | -3/Garrison Resources | -11 -10 -10 -10 -9 -8 -8 -7 -7 -7 -7 -7 -6 -6 -6 -6 -5 -5 -5 -4 -4 -3 -3 -3 -3 ----------- Run | Yrd Mat Min Exi Min Mat Gar Fac Was Fac Gar Fac Fac Was Fac DSF Fac Gar Fac Fac DSF Res Gar Tes Gar Matter Collected 12073 | 289 80 40 40 523 1304 821 1023 121 1728 82 57 151 135 48 131 184 685 306 . 410 2199 359 877 480 Remotely . | . . . . . . . . . . . . . . . . . . . . . . . . . Salvage Created 26966 | 83 558 95 . 588 3260 1621 1767 65 2688 281 127 729 1389 151 371 379 1485 786 . 1039 5170 733 1851 1750 Parts 1133 | 7 29 4 . 40 157 78 87 1 124 11 3 25 3 . 22 8 65 48 . 35 245 28 76 37 Haulers Intercepted 7 | . . . . . 4 . . . 2 . . . . . . . . . . . 1 . . . Recyclers Shooed 17 | . . 1 . . 3 . 2 . 2 . . 3 . . . . . . . . 5 . 1 . Parts Field Recycled 20 | . . . . . 20 . . . . . . . . . . . . . . . . . . . Retrieved Matter 291 | . . . . . 291 . . . . . . . . . . . . . . . . . . . Parts Self-Destructed . | . . . . . . . . . . . . . . . . . . . . . . . . . Prevented . | . . . . . . . . . . . . . . . . . . . . . . . . . Kills | -11 -10 -10 -10 -9 -8 -8 -7 -7 -7 -7 -7 -6 -6 -6 -6 -5 -5 -5 -4 -4 -3 -3 -3 -3 ------- Run | Yrd Mat Min Exi Min Mat Gar Fac Was Fac Gar Fac Fac Was Fac DSF Fac Gar Fac Fac DSF Res Gar Tes Gar Combat Hostiles Destroyed 395 | . 9 2 . 15 45 34 27 . 55 8 3 12 6 3 11 6 30 11 . 11 51 10 21 25 Guns 248 | . 7 2 . 12 42 27 24 . 37 2 3 10 6 2 7 6 13 9 . 2 22 . 8 7 Cannons 44 | . . . . . 3 . 3 . 10 . . . . . . . . . . 5 16 4 3 . AOE 54 | . 2 . . 3 . 7 . . 8 4 . . . . 4 . 16 2 . 4 . 2 . 2 Classes Destroyed 22 | 2 6 . . . 8 1 . . 1 . . . 1 . 1 . 1 . . . . . 1 . Worker 31 | . 1 . . 1 7 . . . 1 . . 4 . . . . . 3 . . 12 . 2 . Builder 15 | . 2 . . 1 3 . 1 . . . . . . . . . . 1 . . 6 . 1 . Tunneler 2 | 1 . . . . . . . . 1 . . . . . . . . . . . . . . . Hauler 7 | . . . . . 4 . . . 2 . . . . . . . . . . . 1 . . . Recycler 23 | 1 1 . . . 6 . 4 . 3 . . . . . . . . 1 . . 7 . . . Mechanic 1 | . 1 . . . . . . . . . . . . . . . . . . . . . . . Operator 5 | . . . . . 2 . 1 . 1 . . 1 . . . . . . . . . . . . Watcher 12 | . 3 . . . 5 . 2 . 1 . . . . . . . . 1 . . . . . . Swarmer 52 | . 2 1 . 3 . 13 . . 6 4 . . . . . . 13 4 . . . 2 . 4 Cutter 4 | . . . . . . . . . . . . . . . 4 . . . . . . . . . Grunt 174 | . 7 2 . 12 26 12 14 . 30 . 2 5 . 2 5 4 10 . . 2 27 2 6 6 Brawler 11 | . . . . . 1 . 3 . 3 2 . . . . . . . . . . 1 . 1 . Duelist 8 | . . . . . 2 . . . 2 . . 1 . . 1 . . . . 1 1 . . . Protector 1 | . . . . . . . . . 1 . . . . . . . . . . . . . . . Researcher 2 | . . . . . . . . . . . . . . . . . . . . . . . 2 . Sentry 52 | . . . . . 9 6 4 . 5 2 . 4 . 1 . 2 4 5 . . 1 2 3 4 Specialist 13 | . . . . . 5 1 . . . . . . . . . . . . . 4 . . . 3 Hunter 24 | . . . . . 1 . 1 . 1 . . . . . . . . . . 3 8 2 6 2 Programmer 42 | . . . . . . 2 5 . 7 . 1 2 . . . . 1 2 . . 12 . 5 5 Heavy 5 | . . . . . 1 . . . . . . . . . 1 . . . . 1 1 1 . . Behemoth 4 | . . . . . . . . . . . . . . . . . 2 . . . . 1 . 1 Compactor 6 | . . . . . . . . . . . . . 6 . . . . . . . . . . . Best Kill Streak 16 | 2 5 1 . 3 4 5 6 . 6 4 2 4 1 2 6 4 6 6 . 5 16 4 9 14 Combat Bots Only 14 | . 2 1 . 3 4 5 6 . 5 4 2 4 1 2 6 4 6 3 . 5 7 4 8 14 Max Kills in Single Turn 5 | 1 1 1 . 3 2 3 2 . 3 3 1 1 1 1 3 2 3 5 . 2 3 1 1 3 Gunslinging 1 | . . . . 1 . . 1 . 1 . . . . . . 1 . . . . . . . . Exploded 3 | . 1 . . 3 . 3 . . 2 3 . . . . 3 . 3 2 . 2 . 1 . 1 Melee . | . . . . . . . . . . . . . . . . . . . . . . . . . Uniques/NPCs Destroyed . | . . . . . . . . . . . . . . . . . . . . . . . . . Combat | -11 -10 -10 -10 -9 -8 -8 -7 -7 -7 -7 -7 -6 -6 -6 -6 -5 -5 -5 -4 -4 -3 -3 -3 -3 -------- Run | Yrd Mat Min Exi Min Mat Gar Fac Was Fac Gar Fac Fac Was Fac DSF Fac Gar Fac Fac DSF Res Gar Tes Gar Hostile Shots Fired 3448 | . 31 24 6 75 219 203 254 . 352 111 11 156 . 40 61 24 134 47 . 277 479 94 244 606 Missed 1150 | . 10 9 3 23 69 58 77 . 101 43 2 74 . 12 12 6 42 12 . 122 130 31 85 229 Deflected 15 | . . . . . . . . . . . . . . . . . . . . . 11 4 . . Hits 2298 | . 21 15 3 52 150 145 177 . 251 68 9 82 . 28 49 18 92 35 . 155 349 63 159 377 Melee 46 | . . . 1 . 2 . 5 . 14 3 . 1 . . 12 . . . . . 6 . 2 . Projectile 2252 | . 21 15 2 52 148 145 172 . 237 65 9 81 . 28 37 18 92 35 . 155 343 63 157 377 Critical Strikes 104 | . 1 . . . 6 9 5 . 14 1 . . . . 10 2 2 3 . 5 29 3 5 9 Actively Blocked 12 | . . . . . . . . . . . . . . . . . . . . 1 7 1 3 . Part Disruptions 6 | . . 1 1 . . . . . . . . . . . . . . . . . 1 . 2 1 Damage Taken 39698 | . 320 200 95 661 2743 2091 2379 . 3543 627 138 911 . 246 1231 372 2481 1095 . 2375 6934 1806 3236 6214 Core 3121 | . 43 17 . 120 319 146 216 . 298 90 14 34 . 23 81 20 252 28 . 118 420 165 241 476 Absorbed by Shields 268 | . . . . . . . 8 . . 12 . 52 . . . . 109 . . 79 . . . 8 Reduced by Siege Mode 4 | . . . . . . . . . 4 . . . . . . . . . . . . . . . Ignored by Resistances 112 | . . . . . . . . . 22 . . . . . . . . . . . . . 90 . Regen/Repaired (Parts) 1682 | . . . . . . . . . 675 . . . . . . . . . . . 610 . 397 . Core Remaining (%) 56 | 100 . . . 28 . 15 . . . . 11 . . . 83 . . 70 . 89 . . . . Volleys Fired 1471 | 3 33 7 4 49 188 164 102 1 157 14 7 41 73 11 21 14 102 24 . 49 191 53 101 62 Largest 4 | 2 2 2 2 2 2 2 3 3 3 3 3 3 3 3 3 3 3 3 . 3 4 2 4 4 Hottest 338 | 70 100 90 53 43 136 83 185 136 183 215 180 180 240 180 240 195 240 149 . 229 338 250 236 298 Shots Fired 3147 | 6 64 14 7 96 375 290 268 3 417 30 23 116 143 27 51 42 182 70 . 79 433 79 205 127 Gun 2558 | 6 62 14 5 95 360 285 202 3 360 28 23 116 136 24 45 42 162 70 . 32 260 15 121 92 Cannon 510 | . . . 2 . 15 . 57 . 48 . . . . 3 4 . 5 . . 41 168 60 74 33 Launcher 46 | . . . . 1 . 5 2 . 9 2 . . . . 2 . 15 . . 6 . 2 . 2 Special 33 | . 2 . . . . . 7 . . . . . 7 . . . . . . . 5 2 10 . Kinetic 1119 | 3 . . 7 95 158 129 128 2 248 1 . . . 3 4 14 19 46 . 32 185 1 21 23 Thermal 1604 | 3 2 . . . 217 156 131 1 160 27 23 116 136 24 45 28 143 24 . 18 134 37 101 78 Explosive 34 | . . . . 1 . 5 2 . 9 2 . . . . 2 . 10 . . . . 2 . 1 Electromagnetic 359 | . 62 14 . . . . . . . . . . . . . . 10 . . 29 109 37 73 25 Robot Hit Streak 37 | 2 7 6 2 12 13 37 17 14 11 20 11 31 20 15 11 12 30 7 . 7 28 14 7 11 Robot Miss Streak 7 | 2 5 5 1 5 6 3 7 1 4 2 4 4 5 1 4 4 7 6 . 3 5 2 4 7 Penetration Max 3 | . . . . . . 1 1 . 1 . . . . . . . 1 3 . 1 2 . . . Secondary Targets 43 | . . 1 . 2 7 3 1 . 6 1 1 4 2 . 3 1 2 . . . 4 . 3 2 Max Gunslinging Chain 1 | . . 1 . 1 1 1 1 . 1 1 1 1 1 . 1 1 1 . . . 1 . 1 1 Shots Hit Robots 2028 | 3 43 8 6 65 254 192 179 3 254 21 18 96 137 20 45 35 110 37 . 45 242 31 121 63 Core Hits 1157 | 3 28 4 1 28 141 79 116 2 133 19 8 68 48 10 42 31 83 32 . 32 134 21 44 50 Critical Kills 13 | . . . . . . . 1 . 1 . . . . . . 1 2 2 . . 6 . . . Critical Parts Destroyed 17 | . . . . . 2 4 . . . . . . . . . 3 1 5 . . . . 2 . Critical Strikes 77 | . . . . . 17 11 1 . 8 . . 1 . 2 . 4 7 7 . . 11 . 7 1 Burn 36 | . . . . . 15 7 . . 4 . . 1 . 2 . . 1 . . . . . 5 1 Meltdown 1 | . . . . . . . . . . . . . . . . . . . . . 1 . . . Destroy 32 | . . . . . 2 4 1 . 1 . . . . . . 4 6 7 . . 5 . 2 . Blast 6 | . . . . . . . . . 3 . . . . . . . . . . . 3 . . . Corrupt 2 | . . . . . . . . . . . . . . . . . . . . . 2 . . . Melee Attacks 4 | . . . 4 . . . . . . . . . . . . . . . . . . . . . Impact . | . . . . . . . . . . . . . . . . . . . . . . . . . Slashing . | . . . . . . . . . . . . . . . . . . . . . . . . . Piercing . | . . . . . . . . . . . . . . . . . . . . . . . . . Sneak Attacks 4 | . . . 4 . . . . . . . . . . . . . . . . . . . . . Combat Hostiles . | . . . . . . . . . . . . . . . . . . . . . . . . . Follow-up Attacks . | . . . . . . . . . . . . . . . . . . . . . . . . . Damage Inflicted 58721 | 37 949 119 25 1050 5133 4117 3808 59 6780 788 374 2236 3800 484 1266 726 4364 1577 . 2002 9772 1637 4165 3453 Guns 40294 | 37 633 119 10 944 4924 3512 3081 59 4843 536 374 2225 3800 484 1024 726 2597 892 . 527 5397 . 2180 1370 Cannons 10148 | . . . 15 . 209 . 689 . 823 . . . . . . . . . . 667 4289 842 1856 758 Explosions 8120 | . 316 . . 106 . 605 . . 1114 252 . . . . 242 . 1767 685 . 808 . 795 129 1301 Melee . | . . . . . . . . . . . . . . . . . . . . . . . . . Ramming 159 | . . . . . . . 38 . . . . 11 . . . . . . . . 86 . . 24 Kinetic 15725 | 12 . . 25 944 1901 1504 1532 26 3430 . . . . . . 65 111 607 . 527 4159 . 435 447 Thermal 31654 | 25 263 . . . 3232 2008 2238 33 2236 536 374 2225 3800 484 1024 661 2616 970 . 904 3050 362 1969 2644 Explosive 3857 | . . . . 106 . 605 . . 1114 252 . . . . 242 . 1030 . . . . 508 . . Electromagnetic 7326 | . 686 119 . . . . . . . . . . . . . . 607 . . 571 2477 767 1761 338 Impact . | . . . . . . . . . . . . . . . . . . . . . . . . . Slashing . | . . . . . . . . . . . . . . . . . . . . . . . . . Piercing . | . . . . . . . . . . . . . . . . . . . . . . . . . Highest Corruption 76 | . . 1 3 3 3 5 11 11 15 17 17 1 1 1 1 . 2 4 . 3 19 19 56 76 Average Corruption 11 | . . 1 1 3 3 4 5 11 12 15 17 1 1 1 1 . 1 2 . 1 11 19 42 69 Corruption Purged 5 | . . . . . . . . . 5 . . . . . . . . . . . . . . . Corruption Blocked . | . . . . . . . . . . . . . . . . . . . . . . . . . Effects 577 | . . 6 2 27 13 50 26 14 130 18 17 3 3 1 1 . 17 13 . 3 71 28 66 68 Message Errors 144 | . . 2 1 11 2 8 8 6 39 4 6 . 1 . . . 4 6 . 2 15 6 13 10 Matter Fused 119 | . . . 1 5 5 13 4 2 27 3 1 1 . . . . 5 2 . 1 18 6 16 9 Heat Flow Errors 58 | . . 1 . 3 2 6 3 1 14 2 1 . 1 . . . 2 . . . 10 . 8 4 Energy Discharges 63 | . . 1 . 2 2 5 4 . 15 3 5 . . . . . 1 2 . . 6 3 5 9 Parts Rejected 5 | . . . . . . . . . 1 1 . . . . . . . . . . 1 . 2 . Parts Fused 9 | . . . . . . 1 1 . 2 . . . . 1 . . . . . . 3 . 1 . Data Loss (minor) 56 | . . 2 . 1 1 6 2 2 16 3 . 1 . . 1 . . 1 . . 8 5 1 6 Data Loss (major) 20 | . . . . 1 . 1 . 3 2 . 1 1 . . . . 2 . . . 2 . 3 4 Misfires 24 | . . . . . 1 3 1 . 6 . 2 . 1 . . . 1 1 . . 1 2 2 3 Alerts 15 | . . . . 3 . 2 1 . 2 1 1 . . . . . . . . . 2 2 . 1 Misdirections 6 | . . . . . . . . . 2 . . . . . . . . . . . 2 2 . . Weapon Failures 58 | . . . . 1 . 5 2 . 4 1 . . . . . . 2 1 . . 3 2 15 22 Overload Shots 1 | . . . . . . . . . . . . . . . . . 1 . . . . . . . Overflow Damage 620 | . . . . . 14 138 . . 35 . . . . . . . 69 115 . . 154 6 23 66 Projectiles 198 | . . . . . 14 . . . 2 . . . . . . . . . . . 144 . 23 15 Explosions 412 | . . . . . . 138 . . 33 . . . . . . . 69 115 . . . 6 . 51 Melee 10 | . . . . . . . . . . . . . . . . . . . . . 10 . . . Knockbacks 10 | . . . . . 4 . 1 . 2 . . . . . . . . . . . 3 . . . Impact 1 | . . . . . . . 1 . . . . . . . . . . . . . . . . . Kinetic 9 | . . . . . 4 . . . 2 . . . . . . . . . . . 3 . . . Secondary . | . . . . . . . . . . . . . . . . . . . . . . . . . Self-Inflicted Damage 1525 | . 61 . . 32 . 115 40 . 113 . . . . . 109 . 174 313 . 70 . 25 24 449 Shots 52 | . 2 . . 1 . 3 1 . 3 . . . . . 2 . 6 3 . 1 . 3 1 26 Rammed 2 | . . . . . . . 2 . . . . . . . . . . . . . . . . . Targets Rammed 14 | . . . . . . . 2 . . . . 1 . . . . . . . . 9 . . 2 Kicked 12 | . . . . . . . . . . . . 1 . . . . . . . . 9 . . 2 Crushed . | . . . . . . . . . . . . . . . . . . . . . . . . . Highest Temperature 681 | 38 234 261 3 254 239 260 336 245 435 214 375 117 102 60 222 258 681 299 . 236 348 191 194 312 Average Temperature 86 | 16 64 76 2 44 72 54 109 100 111 54 105 29 50 21 99 103 96 86 . 117 105 61 59 114 Received Heat Transfer 8297 | . 96 51 . 339 1089 810 813 . 1218 162 36 344 . 81 351 135 803 135 . 9 1042 111 282 390 Effects 27 | . 2 . . . . . . . 11 . 1 . . . . . 9 2 . . 1 . . 1 Shutdowns 1 | . . . . . . . . . 1 . . . . . . . . . . . . . . . Energy Bleed 8 | . . . . . . . . . 3 . 1 . . . . . 4 . . . . . . . Interference 11 | . 2 . . . . . . . 6 . . . . . . . . 2 . . . . . 1 Matter Decay 1 | . . . . . . . . . . . . . . . . . 1 . . . . . . . Short Circuit 4 | . . . . . . . . . 1 . . . . . . . 2 . . . 1 . . . Damage (major) 1 | . . . . . . . . . . . . . . . . . 1 . . . . . . . Damage (core) 1 | . . . . . . . . . . . . . . . . . 1 . . . . . . . Siege Activations 1 | . . . . . . . . . 1 . . . . . . . . . . . . . . . Total Turns 13 | . . . . . . . . . 13 . . . . . . . . . . . . . . . Longest Duration 13 | . . . . . . . . . 13 . . . . . . . . . . . . . . . Martial Activations . | . . . . . . . . . . . . . . . . . . . . . . . . . Shielding Activations 3 | . . . . . . . . . . . . . . . . . . . . . 1 2 . . Total Turns 75 | . . . . . . . . . . . . . . . . . . . . . 38 37 . . Longest Duration 38 | . . . . . . . . . . . . . . . . . . . . . 38 22 . . Robots Disrupted 3 | . 1 1 . . . . . . . . . . . . . . . . . 1 . . . . Combat Hostiles 3 | . 1 1 . . . . . . . . . . . . . . . . . 1 . . . . Robots Corrupted 29 | . . 1 . . . . . . . . . . . . . . 1 . . . 13 3 9 2 Combat Hostiles 26 | . . . . . . . . . . . . . . . . . 1 . . . 12 3 8 2 Parts Fried 60 | . 1 . . . . . . . . . . . . . . . 2 . . 1 23 8 23 2 Impact Corruptions 1 | . . . . . . . . . . . . . . . . . . . . . 1 . . . Robots Melted 23 | . . . . . . . . . . 2 . 2 . 1 . . . . . . 1 1 2 14 Combat Hostiles 23 | . . . . . . . . . . 2 . 2 . 1 . . . . . . 1 1 2 14 Parts Melted 157 | . . . . . 15 1 6 . 5 6 4 13 . 6 2 4 7 . . 6 6 12 9 55 Heat Transferred 65296 | 74 250 . . . 7104 4366 4206 75 4350 1119 760 4862 8625 1208 2337 1500 4826 907 . 720 3168 1797 3416 9626 Parts Sabotaged 4 | . . . . . . . . . . . . . . . . . . . . . 4 . . . Parts Stolen . | . . . . . . . . . . . . . . . . . . . . . . . . . Parts Stripped . | . . . . . . . . . . . . . . . . . . . . . . . . . Power Chain Reactions 11 | . 6 . . . . . . . . . . . . . . . 1 . . 3 . . 1 . Alert | -11 -10 -10 -10 -9 -8 -8 -7 -7 -7 -7 -7 -6 -6 -6 -6 -5 -5 -5 -4 -4 -3 -3 -3 -3 ------- Run | Yrd Mat Min Exi Min Mat Gar Fac Was Fac Gar Fac Fac Was Fac DSF Fac Gar Fac Fac DSF Res Gar Tes Gar Maximum Alert Level 5 | . . . . . 3 5 3 1 3 3 2 . . . 1 . 4 3 2 2 3 3 3 3 Low Security (%) 36 | 100 100 100 . 100 30 . . 32 64 . . 100 100 100 51 100 8 . . . . . . . Level 1 10 | . . . . . 21 . . 67 12 . 89 . . . 48 . 7 . . 48 12 . . . Level 2 26 | . . . . . 32 16 30 . 15 80 10 . . . . . 39 . 100 51 70 31 84 20 Level 3 20 | . . . . . 15 33 69 . 7 19 . . . . . . 13 100 . . 16 68 15 79 Level 4 5 | . . . . . . 49 . . . . . . . . . . 30 . . . . . . . Level 5 . | . . . . . . . . . . . . . . . . . . . . . . . . . High Security . | . . . . . . . . . . . . . . . . . . . . . . . . . Max Security . | . . . . . . . . . . . . . . . . . . . . . . . . . Sterilizations 2 | . . . . . . . . . . . . . . . 1 . . . . 1 . . . . Peak Influence 1635 | 10 123 74 . 91 812 1635 982 341 853 757 426 132 8 53 277 174 1507 949 450 548 776 950 728 975 Initial 858 | . . 12 . . 7 518 858 341 88 597 396 132 8 . 26 144 93 791 450 311 308 564 534 541 Average 464 | 1 42 7 . 26 366 1105 775 235 253 645 341 64 . 20 183 128 798 815 447 413 613 788 642 836 Influence Increases 12993 | 10 369 95 . 405 1516 1157 794 . 1690 190 80 459 . 78 261 159 1484 469 5 307 1551 466 734 714 Destroy 0b10 Robot/C 7992 | . 180 80 . 300 960 680 512 . 1080 160 60 240 . 60 220 120 700 240 . 220 1020 200 460 500 Destroy 0b10 Robot/NC 522 | 10 40 . . 10 135 20 37 . 50 . . 30 . . . . 5 35 . 5 130 . 15 . Destroy Leader 1392 | . 46 10 . 60 258 40 106 . 246 10 20 72 . 10 30 30 50 62 . 40 182 20 60 40 Allied During Kill 116 | . . 5 . . 18 . . . . . . 41 . . . . 48 4 . . . . . . Successful Hack 366 | . 46 . . . 78 14 30 . 95 . . 60 . 5 . 9 . . 5 . 24 . . . Disable Machine 306 | . 15 . . 30 30 . 36 . 30 . . . . . . . . 90 . . 15 . 60 . Anti-Garrison Action 850 | . . . . . . 300 . . . . . . . . . . 400 . . . . 100 . 50 Destroy Structure 912 | . 27 . . 5 7 73 16 . 54 20 . 1 . 3 11 . 236 38 . 42 120 86 64 109 Partial Spotted 60 | . . . . . . . . . . . . 15 . . . . . . . . 15 15 15 . Lose Combat Pursuer 477 | . 15 . . . 30 30 57 . 135 . . . . . . . 45 . . . 45 45 60 15 Influence Decreases 12038 | 10 337 127 . 384 739 320 1453 849 964 286 567 705 24 40 22 303 110 1056 480 204 1346 269 962 481 Entered New Map 5067 | . . 20 . . 14 280 777 635 39 256 361 138 16 . 12 133 40 716 470 134 240 189 416 181 Time Decay 5166 | 10 317 107 . 364 575 . 586 214 705 . 206 472 8 40 . 170 . 310 10 . 656 . 416 . Lost Part 1290 | . 20 . . 20 90 40 90 . 70 30 . 10 . . 10 . 70 10 . 70 270 80 110 300 Lost Ally 215 | . . . . . 60 . . . . . . 85 . . . . . 20 . . 30 . 20 . Purge Threat 300 | . . . . . . . . . 150 . . . . . . . . . . . 150 . . . Squads Dispatched 73 | . 2 . . 1 11 . 9 . 16 . 3 4 . . 2 1 . 8 . 3 8 . 5 . Investigation 19 | . 1 . . 1 4 . 1 . 6 . 1 1 . . . 1 . . . . 2 . 1 . Extermination 19 | . . . . . . . 4 . 6 . 1 2 . . . . . 1 . . 3 . 2 . Reinforcement 20 | . 1 . . . 6 . 1 . 1 . 1 . . . 2 . . 2 . 3 2 . 1 . Assault 9 | . . . . . 1 . 3 . 2 . . . . . . . . 1 . . 1 . 1 . Garrison 6 | . . . . . . . . . 1 . . 1 . . . . . 4 . . . . . . Intercept . | . . . . . . . . . . . . . . . . . . . . . . . . . Searches Triggered . | . . . . . . . . . . . . . . . . . . . . . . . . . Construction Impeded 3 | . . . . . . . 1 . . . . . . . . . . 2 . . . . . . Haulers Reinforced 1 | . . . . . . . . . . . . . . . . . . . . . 1 . . . Active Scanning Responses 1 | . . . . . . . . . . . . . . . . . . . . . . . . 1 Cargo Convoy Interrupts . | . . . . . . . . . . . . . . . . . . . . . . . . . Stealth | -11 -10 -10 -10 -9 -8 -8 -7 -7 -7 -7 -7 -6 -6 -6 -6 -5 -5 -5 -4 -4 -3 -3 -3 -3 --------- Run | Yrd Mat Min Exi Min Mat Gar Fac Was Fac Gar Fac Fac Was Fac DSF Fac Gar Fac Fac DSF Res Gar Tes Gar Distress Signals 12 | . . . . . 5 . 3 . 2 . . 1 . . . . . . . . 1 . . . Communications Jammed 58 | . . . . . . . . . . . . . . . . . . . . . 35 . 23 . Distress Signals 55 | . . . . . . . . . . . . . . . . . . . . . 32 . 23 . Times Spotted 536 | . 14 5 5 15 66 37 51 . 74 8 3 22 6 3 11 6 32 17 . 12 74 13 32 30 Peak Tracking Total 14 | . 3 3 11 3 4 5 7 . 7 4 1 4 2 3 5 3 6 8 . 4 8 4 6 14 Tactical Retreats 27 | . 1 . 1 . 2 2 4 . 8 . . . . . . . 1 . . . 2 2 3 1 Traps | -11 -10 -10 -10 -9 -8 -8 -7 -7 -7 -7 -7 -6 -6 -6 -6 -5 -5 -5 -4 -4 -3 -3 -3 -3 ------- Run | Yrd Mat Min Exi Min Mat Gar Fac Was Fac Gar Fac Fac Was Fac DSF Fac Gar Fac Fac DSF Res Gar Tes Gar Traps Triggered 42 | . 2 . . . 2 10 4 . 4 6 . 1 . . 1 . 6 . . 1 2 1 . 2 Indirectly . | . . . . . . . . . . . . . . . . . . . . . . . . . Trap Hack Attempts . | . . . . . . . . . . . . . . . . . . . . . . . . . Triggered . | . . . . . . . . . . . . . . . . . . . . . . . . . Disarmed . | . . . . . . . . . . . . . . . . . . . . . . . . . Reprogrammed 4 | . 4 . . . . . . . . . . . . . . . . . . . . . . . Reused . | . . . . . . . . . . . . . . . . . . . . . . . . . Traps Reconfigurated 4 | . . . . . 4 . . . . . . . . . . . . . . . . . . . Traps Extracted . | . . . . . . . . . . . . . . . . . . . . . . . . . Installed . | . . . . . . . . . . . . . . . . . . . . . . . . . Triggered . | . . . . . . . . . . . . . . . . . . . . . . . . . Machines | -11 -10 -10 -10 -9 -8 -8 -7 -7 -7 -7 -7 -6 -6 -6 -6 -5 -5 -5 -4 -4 -3 -3 -3 -3 ---------- Run | Yrd Mat Min Exi Min Mat Gar Fac Was Fac Gar Fac Fac Was Fac DSF Fac Gar Fac Fac DSF Res Gar Tes Gar Machines Disabled 32 | . 1 . 1 2 2 2 3 . 2 . . . . . . . 5 6 . . 1 2 4 1 Max in Single Turn 4 | . 1 . 1 1 1 1 1 . 1 . . . . . . . 1 4 . . 1 1 1 1 Garrison Access 3 | . . . . . . . 1 . 1 . . 1 . . . . . . . . . . . . Garrison Relay 9 | . . . . . . 2 . . . . . . . . . . 4 . . . . 2 . 1 Machines Repaired . | . . . . . . . . . . . . . . . . . . . . . . . . . Machines Dismantled . | . . . . . . . . . . . . . . . . . . . . . . . . . Machines Sabotaged . | . . . . . . . . . . . . . . . . . . . . . . . . . Overloaded Fab Kills . | . . . . . . . . . . . . . . . . . . . . . . . . . Hacking | -11 -10 -10 -10 -9 -8 -8 -7 -7 -7 -7 -7 -6 -6 -6 -6 -5 -5 -5 -4 -4 -3 -3 -3 -3 --------- Run | Yrd Mat Min Exi Min Mat Gar Fac Was Fac Gar Fac Fac Was Fac DSF Fac Gar Fac Fac DSF Res Gar Tes Gar Machines Accessed 93 | . 7 . 2 1 19 3 8 . 21 2 2 9 . 1 . 4 1 1 1 . 9 . 2 . Terminals 53 | . 7 . . . 12 3 5 . 9 2 2 3 . 1 . 2 1 1 1 . 4 . . . Fabricators 10 | . . . . . . . 2 . 4 . . 1 . . . 1 . . . . 1 . 1 . Repair Stations 8 | . . . . . 2 . . . 4 . . 1 . . . . . . . . 1 . . . Recycling Units 6 | . . . . . 2 . . . 1 . . 1 . . . . . . . . 2 . . . Scanalyzers 5 | . . . . . 2 . . . 1 . . 2 . . . . . . . . . . . . Garrison Access 8 | . . . . . 1 . 1 . 2 . . 1 . . . 1 . . . . 1 . 1 . Total Hacks 283 | . 28 . 5 1 73 8 25 . 66 3 4 23 . 1 . 9 3 2 2 . 26 . 4 . Successful 165 | . 18 . 5 1 51 1 12 . 42 . . 15 . 1 . 6 . . 1 . 10 . 2 . Failed 117 | . 9 . . . 22 7 13 . 24 3 4 8 . . . 3 3 2 1 . 16 . 2 . Catastrophic 20 | . . . . . 2 1 3 . 5 1 1 1 . . . 2 . 1 . . 2 . 1 . Database Lockouts 1 | . 1 . . . . . . . . . . . . . . . . . . . . . . . Manual 102 | . 26 . 1 . 30 1 10 . 15 . 1 5 . . . 3 . 2 . . 8 . . . Terminals 162 | . 28 . . . 41 8 20 . 30 3 4 6 . 1 . 3 3 2 2 . 11 . . . Fabricators 39 | . . . . . . . 4 . 11 . . 8 . . . 5 . . . . 8 . 3 . Repair Stations 18 | . . . . . 6 . . . 8 . . 2 . . . . . . . . 2 . . . Recycling Units 13 | . . . . . 5 . . . 2 . . 2 . . . . . . . . 4 . . . Scanalyzers 34 | . . . . . 17 . . . 13 . . 4 . . . . . . . . . . . . Garrison Access 11 | . . . . . 4 . 1 . 2 . . 1 . . . 1 . . . . 1 . 1 . Terminal Hacks 44 | . 7 . 5 1 10 1 6 . 9 . . . . 1 . 1 . . 1 . 2 . . . Record 4 | . . . 4 . . . . . . . . . . . . . . . . . . . . . Part Schematic 4 | . 2 . . . 1 . 1 . . . . . . . . . . . . . . . . . Robot Schematic 2 | . 1 . . . . . 1 . . . . . . . . . . . . . . . . . Robot Analysis 2 | . 1 . . . . . 1 . . . . . . . . . . . . . . . . . Prototype ID Bank 5 | . . . . . 3 . 1 . 1 . . . . . . . . . . . . . . . Open Door 1 | . . . . 1 . . . . . . . . . . . . . . . . . . . . Open DSF 3 | . . . . . . . . . . . . . . 1 . 1 . . 1 . . . . . Branch Access Points 2 | . . . . . 1 . . . 1 . . . . . . . . . . . . . . . Emergency Access Points 1 | . . . . . . . . . 1 . . . . . . . . . . . . . . . Terminal Index 3 | . . . . . 1 . . . 1 . . . . . . . . . . . 1 . . . Fabricator Index 1 | . . . . . . . 1 . . . . . . . . . . . . . . . . . Repair Station Index 1 | . . . . . 1 . . . . . . . . . . . . . . . . . . . Scanalyzer Index 1 | . . . . . 1 . . . . . . . . . . . . . . . . . . . Garrison Index 1 | . . . . . . . . . 1 . . . . . . . . . . . . . . . Unreport Threat 2 | . . . . . . . . . 1 . . . . . . . . . . . 1 . . . Locate Traps 2 | . 1 . . . 1 . . . . . . . . . . . . . . . . . . . Reprogram Traps 1 | . 1 . . . . . . . . . . . . . . . . . . . . . . . Recall Assault 1 | . . . . . . . 1 . . . . . . . . . . . . . . . . . Hauler Manifests 3 | . 1 . . . 1 . . . 1 . . . . . . . . . . . . . . . Registered Prototypes 1 | . . . . . . . . . 1 . . . . . . . . . . . . . . . Zone Layout 1 | . . . . . . . . . 1 . . . . . . . . . . . . . . . Patrol Navigation 1 | . . . . . . 1 . . . . . . . . . . . . . . . . . . Proto ID Catalog 1 | . . . 1 . . . . . . . . . . . . . . . . . . . . . Fabricator Hacks 28 | . . . . . . . 1 . 9 . . 8 . . . 3 . . . . 6 . 1 . Network Status 2 | . . . . . . . 1 . 1 . . . . . . . . . . . . . . . Load Schematic 14 | . . . . . . . . . 4 . . 4 . . . 2 . . . . 3 . 1 . Build 12 | . . . . . . . . . 4 . . 4 . . . 1 . . . . 3 . . . Repair Station Hacks 12 | . . . . . 5 . . . 6 . . 1 . . . . . . . . . . . . Scan Component 7 | . . . . . 2 . . . 4 . . 1 . . . . . . . . . . . . Repair 4 | . . . . . 2 . . . 2 . . . . . . . . . . . . . . . Refit 1 | . . . . . 1 . . . . . . . . . . . . . . . . . . . Recycling Unit Hacks 5 | . . . . . 3 . . . 1 . . . . . . . . . . . 1 . . . Report Inventory 4 | . . . . . 3 . . . 1 . . . . . . . . . . . . . . . Retrieve Components 1 | . . . . . . . . . . . . . . . . . . . . . 1 . . . Scanalyzer 31 | . . . . . 16 . . . 12 . . 3 . . . . . . . . . . . . Insert Component 16 | . . . . . 8 . . . 6 . . 2 . . . . . . . . . . . . Analyze 15 | . . . . . 8 . . . 6 . . 1 . . . . . . . . . . . . Garrison Access Hacks 8 | . . . . . 1 . 1 . 2 . . 1 . . . 1 . . . . 1 . 1 . Unlock Access 5 | . . . . . 1 . . . 1 . . . . . . 1 . . . . 1 . 1 . Seal Access 3 | . . . . . . . 1 . 1 . . 1 . . . . . . . . . . . . Unauthorized Hacks 37 | . 11 . . . 16 . 4 . 3 . . 2 . . . 1 . . . . . . . . Terminals 35 | . 11 . . . 15 . 4 . 2 . . 2 . . . 1 . . . . . . . . Track 4 | . 1 . . . 2 . . . . . . 1 . . . . . . . . . . . . Assimilate 2 | . . . . . 2 . . . . . . . . . . . . . . . . . . . Botnet 13 | . 3 . . . 4 . 2 . 2 . . 1 . . . 1 . . . . . . . . Operators 3 | . 1 . . . 1 . 1 . . . . . . . . . . . . . . . . . Skim 13 | . 6 . . . 6 . 1 . . . . . . . . . . . . . . . . . Fabricators . | . . . . . . . . . . . . . . . . . . . . . . . . . Repair Stations . | . . . . . . . . . . . . . . . . . . . . . . . . . Recycling Units 1 | . . . . . . . . . 1 . . . . . . . . . . . . . . . Recyclers 1 | . . . . . . . . . 1 . . . . . . . . . . . . . . . Scanalyzers . | . . . . . . . . . . . . . . . . . . . . . . . . . Garrison Access 1 | . . . . . 1 . . . . . . . . . . . . . . . . . . . Reprogram 1 | . . . . . 1 . . . . . . . . . . . . . . . . . . . Data Cores Recovered 3 | . . . . . 1 . 1 . . . . 1 . . . . . . . . . . . . Used . | . . . . . . . . . . . . . . . . . . . . . . . . . Hacking Detections 79 | . 6 . . . 17 3 7 . 19 2 2 7 . 1 . 3 1 1 1 . 8 . 1 . Full Trace Events 15 | . . . . . 4 . 1 . 5 . 1 1 . . . 1 . . . . 1 . 1 . Feedback Events . | . . . . . . . . . . . . . . . . . . . . . . . . . Feedback Blocked . | . . . . . . . . . . . . . . . . . . . . . . . . . Robot Schematics Acquired 2 | . 1 . . . . . 1 . . . . . . . . . . . . . . . . . Robots Built 10 | . . . . . . . . . . . . 9 . . . . . . . . 1 . . . Authchips 4 | . . . . . . . . . . . . 3 . . . . . . . . 1 . . . Time 174 | . . . . . . . . . . . . 147 . . . . . . . . 27 . . . Total Robot Build Rating 19 | . . . . . . . . . . . . 18 . . . . . . . . 1 . . . Part Schematics Acquired 35 | . 2 . . . 8 . 1 . 5 . . 1 . . . . . . . . . . 18 . Parts Built 9 | . . . . . . . . . 4 . . 2 . . . 1 . . . . 2 . . . Authchips 3 | . . . . . . . . . . . . . . . . 1 . . . . 2 . . . Time 427 | . . . . . . . . . 294 . . 42 . . . 28 . . . . 63 . . . Total Part Build Rating 38 | . . . . . . . . . 16 . . 8 . . . 4 . . . . 10 . . . Parts Repaired 4 | . . . . . 2 . . . 2 . . . . . . . . . . . . . . . Time 236 | . . . . . 152 . . . 84 . . . . . . . . . . . . . . . Parts Recycled . | . . . . . . . . . . . . . . . . . . . . . . . . . Recycled Matter . | . . . . . . . . . . . . . . . . . . . . . . . . . Retrieved Matter . | . . . . . . . . . . . . . . . . . . . . . . . . . Retrieved Components 2 | . . . . . . . . . . . . . . . . . . . . . 2 . . . Parts Scanalyzed 16 | . . . . . 8 . . . 6 . . 2 . . . . . . . . . . . . Part Schematics Acquired 13 | . . . . . 7 . . . 5 . . 1 . . . . . . . . . . . . Parts Damaged 3 | . . . . . 2 . . . 1 . . . . . . . . . . . . . . . Bothacking | -11 -10 -10 -10 -9 -8 -8 -7 -7 -7 -7 -7 -6 -6 -6 -6 -5 -5 -5 -4 -4 -3 -3 -3 -3 ------------ Run | Yrd Mat Min Exi Min Mat Gar Fac Was Fac Gar Fac Fac Was Fac DSF Fac Gar Fac Fac DSF Res Gar Tes Gar Used RIF Installer 3 | . . . . . . 1 . . . . . . . . . . 2 . . . . . . . Robot Detection 1 | . . . . . . . . . . . . . . . . . 1 . . . . . . . Watcher Feeds 1 | . . . . . . . . . . . . . . . . . 1 . . . . . . . Robots Hacked 24 | . . . 4 . . . 6 . . . . . 6 . . . . . . . 4 1 3 . Non-combat 12 | . . . 3 . . . 4 . . . . . . . . . . . . . 4 . 1 . Combat 12 | . . . 1 . . . 2 . . . . . 6 . . . . . . . . 1 2 . Robot Hacks Applied 29 | . . . 4 . . . 7 . . . . . 6 . . . . . . . 4 1 7 . parse_system 4 | . . . 4 . . . . . . . . . . . . . . . . . . . . . find_chute 1 | . . . . . . . 1 . . . . . . . . . . . . . . . . . hold_bot 1 | . . . . . . . 1 . . . . . . . . . . . . . . . . . map_walls 1 | . . . . . . . . . . . . . . . . . . . . . 1 . . . find_fabricator 1 | . . . . . . . . . . . . . . . . . . . . . 1 . . . drop_inventory 2 | . . . . . . . 1 . . . . . . . . . . . . . 1 . . . map_route 2 | . . . . . . . 1 . . . . . . . . . . . . . 1 . . . disable_scanner 2 | . . . . . . . . . . . . . . . . . . . . . . . 2 . locate_prototypes 1 | . . . . . . . . . . . . . . . . . . . . . . . 1 . report_prototypes 1 | . . . . . . . . . . . . . . . . . . . . . . . 1 . report_schematics 1 | . . . . . . . . . . . . . . . . . . . . . . . 1 . report_analyses 1 | . . . . . . . . . . . . . . . . . . . . . . . 1 . ignore_targets 6 | . . . . . . . . . . . . . 6 . . . . . . . . . . . amplify_resonance 2 | . . . . . . . 2 . . . . . . . . . . . . . . . . . reboot_system 1 | . . . . . . . 1 . . . . . . . . . . . . . . . . . formatsys_low 1 | . . . . . . . . . . . . . . . . . . . . . . . 1 . formatsys_high 1 | . . . . . . . . . . . . . . . . . . . . . . 1 . . Relay Couplers Released 45 | . . . . . . 12 . . . . . . . . . . 17 . . . 3 8 . 5 Machine Destruction 39 | . . . . . . 9 . . . . . . . . . . 17 . . . . 8 . 5 Programmers 6 | . . . . . . 3 . . . . . . . . . . . . . . 3 . . . Attached 9 | . . . . . . . 2 . . . . 1 . . . . 2 . . . 2 1 1 . Fabnet Peak Effective % . | . . . . . . . . . . . . . . . . . . . . . . . . . Robots Rewired 2 | . . 1 . . . . . . . . . . . . . . 1 . . . . . . . Allies Hacked 4 | . . . . . . . . . . . . 3 . . . . . . . . . . 1 . Hacks Repelled . | . . . . . . . . . . . . . . . . . . . . . . . . . Allies | -11 -10 -10 -10 -9 -8 -8 -7 -7 -7 -7 -7 -6 -6 -6 -6 -5 -5 -5 -4 -4 -3 -3 -3 -3 -------- Run | Yrd Mat Min Exi Min Mat Gar Fac Was Fac Gar Fac Fac Was Fac DSF Fac Gar Fac Fac DSF Res Gar Tes Gar Total Allies 18 | . . 1 . . 3 . . . . . . 9 1 . . . 1 . . . 1 1 1 . Largest Group 8 | . . 1 . . 3 . . . . . . 8 2 . . . 1 1 . . 1 1 1 . Highest-Rated Group 148 | . . 16 . . 48 . . . . . . 78 20 . . . 148 141 . . 14 64 64 . Highest-Rated Ally 148 | . . 16 . . 16 . . . . . . 10 10 . . . 148 141 . . 14 64 64 . Total Orders 18 | . . . . . . . . . . . . . . . . . 2 . . . 12 . 4 . STAY 3 | . . . . . . . . . . . . . . . . . 1 . . . 1 . 1 . FOLLOW 5 | . . . . . . . . . . . . . . . . . 1 . . . 3 . 1 . AID 4 | . . . . . . . . . . . . . . . . . . . . . 2 . 2 . EXPLORE 6 | . . . . . . . . . . . . . . . . . . . . . 6 . . . Ally Attacks 81 | . . 7 . . 24 . . . . . . 13 3 . . . 24 6 . . . . 4 . Total Damage 1811 | . . 55 . . 328 . . . . . . 157 136 . . . 784 159 . . . . 192 . Kills 13 | . . 2 . . 3 . . . . . . 1 . . . . 5 2 . . . . . . Allies Corrupted 2 | . . 1 . . . . . . . . . . . . . . . . . . 1 . . . Allies Melted . | . . . . . . . . . . . . . . . . . . . . . . . . . Intel | -11 -10 -10 -10 -9 -8 -8 -7 -7 -7 -7 -7 -6 -6 -6 -6 -5 -5 -5 -4 -4 -3 -3 -3 -3 ------- Run | Yrd Mat Min Exi Min Mat Gar Fac Was Fac Gar Fac Fac Was Fac DSF Fac Gar Fac Fac DSF Res Gar Tes Gar Active Infowar (turns) 5408 | 16 255 . . . . . 2 . 53 . 429 586 . 118 2 . . 301 26 189 1664 50 933 784 A.S.S. 764 | . . . . . . . . . . . . . . . . . . . . . . . . 764 Terrain 2 | . . . . . . . 2 . . . . . . . . . . . . . . . . . Seismic 271 | 16 255 . . . . . . . . . . . . . . . . . . . . . . . Machine Analysis 288 | . . . . . . . . . 47 . . 241 . . . . . . . . . . . . Jamming 4127 | . . . . . . . . . 6 . 429 345 . 118 2 . . 301 26 189 1664 50 933 64 Robot Analysis Total 2 | . 1 . . . . . 1 . . . . . . . . . . . . . . . . . Derelict Logs Recovered 3 | . . 1 . 2 . . . . . . . . . . . . . . . . . . . . Drone Launches 4 | . . . . . . . . . . . . . . . . . . . . . 4 . . . Drone Recoveries 1 | . . . . . . . . . . . . . . . . . . . . . 1 . . . Exploration | -11 -10 -10 -10 -9 -8 -8 -7 -7 -7 -7 -7 -6 -6 -6 -6 -5 -5 -5 -4 -4 -3 -3 -3 -3 ------------- Run | Yrd Mat Min Exi Min Mat Gar Fac Was Fac Gar Fac Fac Was Fac DSF Fac Gar Fac Fac DSF Res Gar Tes Gar Turns Passed 26610 | 74 1119 808 643 1564 3624 1809 1824 442 3094 466 429 1283 607 135 235 349 2071 688 26 437 2451 605 1014 813 Spaces Moved 11484 | 49 606 458 421 499 1716 673 940 275 1419 152 144 662 248 61 95 138 736 313 12 138 819 323 434 153 Core 1 | 1 . . . . . . . . . . . . . . . . . . . . . . . . Treads 496 | . . . . 346 24 92 . . 34 . . . . . . . . . . . . . . . Legs 4501 | . . . . . . . . . 73 152 144 662 248 61 95 138 736 313 12 138 819 323 434 153 Wheels 6486 | 48 606 458 421 153 1692 581 940 275 1312 . . . . . . . . . . . . . . . Hover . | . . . . . . . . . . . . . . . . . . . . . . . . . Flight . | . . . . . . . . . . . . . . . . . . . . . . . . . Fastest Speed 50 | 50 100 135 130 135 140 140 115 145 145 250 250 140 140 140 140 140 126 124 202 122 115 111 107 106 Average Speed 165 | 98 129 167 144 277 150 179 145 149 165 250 250 140 140 140 140 179 216 180 202 157 155 115 118 286 Slowest Speed 580 | 100 175 175 175 320 465 250 160 160 250 250 250 140 140 140 140 250 250 209 202 205 260 198 206 580 Overloaded Moves . | . . . . . . . . . . . . . . . . . . . . . . . . . Propulsion Burnouts . | . . . . . . . . . . . . . . . . . . . . . . . . . Robots Hopped . | . . . . . . . . . . . . . . . . . . . . . . . . . Potential Cave-ins 2 | . . . . . . . . . . . . . . . . . . . . . 2 . . . Cave-ins Triggered . | . . . . . . . . . . . . . . . . . . . . . . . . . Exploration Rate (%) 48 | 4 90 86 71 98 99 78 26 94 45 35 4 13 86 3 76 3 73 13 1 85 27 39 44 12 Regions Visited 24 Branch Regions 4 Pre-discovered Areas 4 | . 1 . 1 1 1 . . . . . . . . . . . . . . . . . . . Known Exits Taken 9 | . 1 1 . . 1 . . . 1 . . . . 1 . 1 . . 1 . 1 . 1 . Unknown Exits Taken 5 | 1 . . 1 1 . . . . . . 1 . . . . . . 1 . . . . . . Scrap Searched 4 | . . 2 . 2 . . . . . . . . . . . . . . . . . . . . Spaces Dug 222 | . 2 . . 5 . 23 25 . 22 24 . . . 1 . . 54 . . 4 27 31 2 2 Terrain Destroyed 533 | . 24 . . 5 . 24 27 . 63 24 . . . 1 19 . 94 18 . 23 64 64 37 46 Melee . | . . . . . . . . . . . . . . . . . . . . . . . . . Projectile 149 | . 2 . . . . 1 3 . 8 . . . . 1 . . 1 . . 9 63 26 12 23 AOE 383 | . 22 . . 5 . 23 24 . 55 24 . . . . 19 . 93 18 . 14 . 38 25 23 Terrain Rammed . | . . . . . . . . . . . . . . . . . . . . . . . . . Walls Destroyed . | . . . . . . . . . . . . . . . . . . . . . . . . . Machines Disabled . | . . . . . . . . . . . . . . . . . . . . . . . . . Actions | -11 -10 -10 -10 -9 -8 -8 -7 -7 -7 -7 -7 -6 -6 -6 -6 -5 -5 -5 -4 -4 -3 -3 -3 -3 --------- Run | Yrd Mat Min Exi Min Mat Gar Fac Was Fac Gar Fac Fac Was Fac DSF Fac Gar Fac Fac DSF Res Gar Tes Gar Total 16339 | 64 874 487 444 586 2414 995 1205 305 1863 208 195 918 344 85 148 203 1049 390 13 281 1631 472 752 413 Wait 2007 | . 196 6 1 7 338 75 79 1 181 7 42 170 6 11 2 34 116 31 . 53 380 50 96 125 Move 11467 | 48 605 457 420 498 1715 672 940 274 1419 151 143 662 247 60 94 138 735 312 12 137 819 322 434 153 Hop . | . . . . . . . . . . . . . . . . . . . . . . . . . Pick Up 294 | 5 24 3 4 10 39 12 14 4 20 4 . 16 1 . 7 6 19 6 . 8 45 9 28 10 Fast Attach 172 | 7 3 2 . . 25 4 10 8 20 1 . 1 5 . 5 1 8 3 . 7 30 3 19 10 Attach 171 | . 1 2 2 5 13 8 13 . 9 4 . 6 . . 3 4 12 1 1 7 34 10 13 23 Detach 32 | . 1 . 1 . 3 . . . . . . . . . . 2 1 . . 2 8 2 3 9 Swap 261 | 1 4 2 5 8 35 7 19 2 20 2 2 8 5 3 6 2 15 5 . 11 56 13 24 6 Drop 326 | . 7 5 3 9 58 13 18 14 37 . 1 13 7 . 10 2 19 8 . 7 53 5 34 3 Fire 1471 | 3 33 7 4 49 188 164 102 1 157 14 7 41 73 11 21 14 102 24 . 49 191 53 101 62 Melee 4 | . . . 4 . . . . . . . . . . . . . . . . . . . . . Ram 2 | . . . . . . . 2 . . . . . . . . . . . . . . . . . Kick 12 | . . . . . . . . . . . . 1 . . . . . . . . 9 . . 2 Crush . | . . . . . . . . . . . . . . . . . . . . . . . . . Escape Stasis 111 | . . . . . . 40 8 . . 25 . . . . . . 18 . . . 5 5 . 10 Rewire 8 | . . 3 . . . . . 1 . . . . . . . . 4 . . . . . . . Trap . | . . . . . . . . . . . . . . . . . . . . . . . . . Miscellaneous 1 | . . . . . . . . . . . . . . . . . . . . . 1 . . . Route ------- -11/Scrapyard -10/Materials (discovered 5 exits: *Mat x3 / *Min / Sub) -10/Mines (discovered 4 exits: *Mat x2 / *Exi / *Sub) -10/Exiles (discovered 2 exits: *Min x2) -9/Mines (discovered 2 exits: *Mat x2) -8/Materials (discovered 5 exits: *Fac x3 / *Sto / Gar) -8/Garrison (discovered 3 exits: *Fac x3) -7/Factory (discovered 2 exits: *Fac / *Low) -7/Waste -7/Factory (discovered 5 exits: *Fac x2 / *Low x2 / Gar) -7/Garrison -7/Factory (discovered 2 exits: *Fac / *Low) -6/Factory -6/Waste -6/Factory -6/DSF -5/Factory -5/Garrison (discovered 3 exits: *Fac x3) -5/Factory (discovered 2 exits: *Fac / [*Upp]) -4/Factory -4/DSF -3/Research -3/Garrison (discovered 2 exits: *Tes x2) -3/Testing -3/Garrison History --------- Turn | Location | Event 31 | -11/Scrapyard | Discovered new exit (range 15) 75 | -11/Scrapyard | Entered Materials 304 | -10/Materials | Build established: Mutant 397 | -10/Materials | Discovered new exit (range 3) 652 | -10/Materials | Central database locked down 789 | -10/Materials | Discovered new exit (range 16) 866 | -10/Materials | Learned Storage stockpile data 918 | -10/Materials | Identified exit to Materials 960 | -10/Materials | Identified exit to Subcaves 960 | -10/Materials | Identified exit to Mines 994 | -10/Materials | Learned 4 Recycling zone layouts 1016 | -10/Materials | Learned 4 Recycling zone layouts 1030 | -10/Materials | Learned 4 Recycling zone layouts 1053 | -10/Materials | Learned location of Mines (-10) 1086 | -10/Materials | Learned location of 2 exits from Mines 1128 | -10/Materials | Learned Storage stockpile data 1194 | -10/Materials | Entered Mines 1196 | -10/Mines | Identified exit to Exiles 1468 | -10/Mines | Received a Rocket Launcher from a helpful Derelict 1832 | -10/Mines | Joined a pair of Derelicts in attacking an 0b10 outpost 1874 | -10/Mines | Deemed a non-threat by the Exiles lab entrance 2002 | -10/Mines | Entered Exiles 2026 | -10/Exiles | Discovered new exit (range 15) 2051 | -10/Exiles | Met 8R-AWN 2078 | -10/Exiles | Met EX-HEX 2144 | -10/Exiles | Met EX-DEC 2276 | -10/Exiles | Learned location of Zion (-7) 2301 | -10/Exiles | Met EX-BIN 2320 | -10/Exiles | Aligned with FarCom system 2322 | -10/Exiles | Given EX-Vault access code 2352 | -10/Exiles | Opened EX-Vault 2361 | -10/Exiles | Found 0b10 Alert Chip 2365 | -10/Exiles | Found Firepult 2372 | -10/Exiles | Found Trap Reconfigurator 2399 | -10/Exiles | Warned to stay clear of 0b10 Research branches 2517 | -10/Exiles | Discovered new exit (range 10) 2596 | -10/Exiles | Attacked by the Exiles 2645 | -10/Exiles | Stole three prototypes: 0b10 Alert Chip, Trap Reconfigurator, Firepult 2645 | -10/Exiles | Entered Mines 2843 | -9/Mines | Discovered new exit (range 10) 3064 | -9/Mines | Met a Derelict shopkeep closing up shop 3276 | -9/Mines | Learned Materials emergency access door positions 3349 | -9/Mines | Core integrity fell below 50% 3435 | -9/Mines | Found DCF Scrap (13 items) 3984 | -9/Mines | Discovered new exit (range 10) 4209 | -9/Mines | Entered Materials 4209 | -8/Materials | Evolved 4 slots: Propulsion x2, Utility x2 4214 | -8/Materials | Discovered new exit (range 11) 4264 | -8/Materials | Identified exit to Garrison 4449 | -8/Materials | Lost 3 allies 5193 | -8/Materials | Discovered new exit (range 16) 5253 | -8/Materials | Lost 3 parts (1p1u1w) 5529 | -8/Materials | Build established: Scavenger-Mutant 5687 | -8/Materials | Repaired Broken Enh. Autogun 5764 | -8/Materials | Repaired Broken Imp. VTOL Module 6481 | -8/Materials | Identified exit to Storage 6569 | -8/Materials | Identified exit to Factory 6630 | -8/Materials | Discovered exit to Factory (range 15) 6647 | -8/Materials | Learned 4 Recycling zone layouts 6713 | -8/Materials | Learned Factory stockpile data 6767 | -8/Materials | Learned location of 1 exit from Recycling 6843 | -8/Materials | Learned 4 Recycling zone layouts 6871 | -8/Materials | Build established: Mutant 6941 | -8/Materials | Learned location of 1 exit from Recycling 7039 | -8/Materials | Core integrity fell below 50% 7409 | -8/Materials | First assault squad dispatched 7833 | -8/Materials | Entered Garrison 7883 | -8/Garrison | Build established: Scavenger-Mutant 7897 | -8/Garrison | Triggered checkpoint 8043 | -8/Garrison | Triggered checkpoint 8357 | -8/Garrison | Triggered checkpoint 8581 | -8/Garrison | Triggered checkpoint 8671 | -8/Garrison | Installed Relay Interface Framework 8721 | -8/Garrison | Triggered checkpoint 8745 | -8/Garrison | Garrison Relay disabled 8774 | -8/Garrison | Build established: Mutant 8812 | -8/Garrison | Discovered exit to Factory (range 14) 8957 | -8/Garrison | Triggered checkpoint 9033 | -8/Garrison | Triggered checkpoint 9058 | -8/Garrison | Core integrity fell below 20% 9255 | -8/Garrison | Triggered checkpoint 9349 | -8/Garrison | Garrison Relay disabled 9642 | -8/Garrison | Entered Factory 9642 | -7/Factory | Evolved 2 slots: Utility x1, Weapon x1 10066 | -7/Factory | Build established: Bothacker-Gunner 10442 | -7/Factory | First assault squad dispatched 10478 | -7/Factory | Discovered new exit (range 10) 10642 | -7/Factory | Lost 5 parts (2n3u) 11133 | -7/Factory | Discovered new exit (range 9) 11383 | -7/Factory | Build established: Scavenger-Gunner 11421 | -7/Factory | System corruption reached 10% 11466 | -7/Factory | Sucked down chute 11466 | -7/Factory | Entered Waste 11466 | -7/Waste | The area was eerily silent 11597 | -7/Waste | Found Imp. Powered Armor 11681 | -7/Waste | Discovered new exit (range 15) 11908 | -7/Waste | Entered Factory 12006 | -7/Factory | Garrison activated, responded to threat 12083 | -7/Factory | Discovered new exit (range 16) 12333 | -7/Factory | Fabricated Lgt. Armored Exoskeleton (x1) 12565 | -7/Factory | Repaired Hvy. Treads 12857 | -7/Factory | Build established: Tank 13107 | -7/Factory | Identified exit to Lower Caves 13264 | -7/Factory | Discovered new exit (range 10) 13425 | -7/Factory | Repaired Imp. Powered Armor 13929 | -7/Factory | Core integrity fell below 50% 14071 | -7/Factory | Fabricated Lgt. Armored Exoskeleton? 14282 | -7/Factory | Fabricated Lgt. Armored Exoskeleton? 14308 | -7/Factory | First assault squad dispatched 14700 | -7/Factory | Fabricated Lgt. Armored Exoskeleton? 15002 | -7/Factory | Identified exit to Garrison 15002 | -7/Factory | Entered Garrison 15111 | -7/Garrison | Core integrity fell below 20% 15252 | -7/Garrison | Triggered checkpoint 15413 | -7/Garrison | Discovered new exit (range 13) 15468 | -7/Garrison | Entered Factory 15761 | -7/Factory | Discovered new exit (range 16) 15784 | -7/Factory | Discovered exit to Lower Caves (range 16) 15897 | -7/Factory | Entered another Factory area 15897 | -6/Factory | Evolved 2 slots: Propulsion x2 16413 | -6/Factory | Fabricated B-36 Bruiser? 16432 | -6/Factory | Garrison activated, responded to threat 16644 | -6/Factory | Fabricated B-36 Bruiser? 16707 | -6/Factory | Fabricated B-36 Bruiser? 16785 | -6/Factory | Discovered new exit (range 9) 16940 | -6/Factory | Build established: Commander-Tank 17034 | -6/Factory | Fabricated Remote Datajack? 17180 | -6/Factory | Sucked down chute 17180 | -6/Factory | Entered Waste 17180 | -6/Waste | Met up with 1 ally sucked down the chute earlier 17195 | -6/Waste | 1 allies followed down the chute 17238 | -6/Waste | Spotted C-40 Crusher 17241 | -6/Waste | Spotted C-40 Crusher 17273 | -6/Waste | Spotted C-40 Crusher 17300 | -6/Waste | Spotted C-40 Crusher 17329 | -6/Waste | Destroyed C-40 Crusher 17334 | -6/Waste | Spotted C-40 Crusher 17342 | -6/Waste | Spotted C-40 Crusher 17452 | -6/Waste | Destroyed C-40 Crusher 17480 | -6/Waste | Destroyed C-40 Crusher 17525 | -6/Waste | Discovered new exit (range 16) 17532 | -6/Waste | Build established: Machinist-Tank 17682 | -6/Waste | Destroyed C-40 Crusher 17731 | -6/Waste | Destroyed C-40 Crusher 17766 | -6/Waste | Destroyed C-40 Crusher 17787 | -6/Waste | Entered Factory 17922 | -6/Factory | Identified exit to DSF 17922 | -6/Factory | Entered DSF 17956 | -6/DSF | Additional patrols routed to DSF 18054 | -6/DSF | Sterilization system engaged 18074 | -6/DSF | Ambient heat levels rising (+10) 18089 | -6/DSF | Ambient heat levels rising (+10) 18104 | -6/DSF | Ambient heat levels rising (+10) 18119 | -6/DSF | Ambient heat levels rising (+10) 18123 | -6/DSF | Discovered new exit (range 14) 18134 | -6/DSF | Ambient heat levels rising (+10) 18149 | -6/DSF | Ambient heat levels rising (+10) 18157 | -6/DSF | Entered Factory 18157 | -5/Factory | Evolved 2 slots: Propulsion x2 18245 | -5/Factory | Fabricated Lgt. Armored Exoskeleton (x1) 18506 | -5/Factory | Identified exit to Garrison 18506 | -5/Factory | Entered Garrison 18583 | -5/Garrison | Expanded RIF knowledge: Watcher Feeds 18663 | -5/Garrison | Triggered checkpoint 18801 | -5/Garrison | Discovered new exit (range 10) 18848 | -5/Garrison | Triggered checkpoint 18914 | -5/Garrison | Garrison Relay disabled 19082 | -5/Garrison | Build established: Gunner 19319 | -5/Garrison | Spotted B-86 Titan 19321 | -5/Garrison | Spotted B-90 Cyclops 19352 | -5/Garrison | Destroyed B-86 Titan 19417 | -5/Garrison | Destroyed B-90 Cyclops 19438 | -5/Garrison | Lost 3 parts (1p1u1w) 19627 | -5/Garrison | Rewired B-90 Cyclops 19746 | -5/Garrison | Triggered checkpoint 19780 | -5/Garrison | Triggered checkpoint 19829 | -5/Garrison | Expanded RIF knowledge: Robot Detection 19850 | -5/Garrison | Triggered checkpoint 19938 | -5/Garrison | Garrison Relay disabled 20058 | -5/Garrison | Discovered new exit (range 14) 20330 | -5/Garrison | Triggered checkpoint 20387 | -5/Garrison | Discovered new exit (range 8) 20439 | -5/Garrison | Garrison Relay disabled 20485 | -5/Garrison | Garrison Relay disabled 20577 | -5/Garrison | Entered Factory 20577 | -5/Factory | Accompanied by 1 ally 20726 | -5/Factory | Discovered new exit (range 13) 20804 | -5/Factory | Build established: Scavenger-Gunner 20944 | -5/Factory | Garrison activated, responded to threat 21177 | -5/Factory | First assault squad dispatched 21249 | -5/Factory | Discovered new exit (range 5) 21256 | -5/Factory | Garrison activated, responded to threat 21265 | -5/Factory | Entered another Factory area 21265 | -4/Factory | Evolved 2 slots: Power x1, Utility x1 21291 | -4/Factory | Identified exit to DSF 21291 | -4/Factory | Entered DSF 21334 | -4/DSF | Additional patrols routed to DSF 21571 | -4/DSF | Lost 6 parts (2n2u2w) 21584 | -4/DSF | Sterilization system engaged 21604 | -4/DSF | Ambient heat levels rising (+10) 21619 | -4/DSF | Ambient heat levels rising (+10) 21629 | -4/DSF | Discovered new exit (range 14) 21634 | -4/DSF | Ambient heat levels rising (+10) 21649 | -4/DSF | Ambient heat levels rising (+10) 21664 | -4/DSF | Ambient heat levels rising (+10) 21679 | -4/DSF | Ambient heat levels rising (+10) 21694 | -4/DSF | Ambient heat levels rising (+10) 21709 | -4/DSF | Ambient heat levels rising (+10) 21724 | -4/DSF | Ambient heat levels rising (+10) 21728 | -4/DSF | Entered Research 21728 | -3/Research | Evolved 2 slots: Utility x1, Weapon x1 22234 | -3/Research | Destroyed 7 combat bots 22273 | -3/Research | Lost 3 parts (2n1w) 22440 | -3/Research | Lost 5 parts (3n2u) 22458 | -3/Research | Build established: Scavenger-Tank 22639 | -3/Research | System corruption reached 10% 22663 | -3/Research | Lost 8 parts (2n3u3w) 22680 | -3/Research | Found Prototype Device 22891 | -3/Research | Build established: Scavenger-Gunner 23058 | -3/Research | Found Unknown Launcher 23058 | -3/Research | Identified Fusion Bomb Launcher 23069 | -3/Research | Found Fusion Bomb Launcher 23493 | -3/Research | Lost 4 parts (2n2w) 23550 | -3/Research | Fabricated M-13 Machinist? 23622 | -3/Research | Fabricated Lgt. Armored Exoskeleton (x1) 23690 | -3/Research | Fabricated Imp. Powered Armor? 23728 | -3/Research | First assault squad dispatched 24179 | -3/Research | Identified exit to Garrison 24179 | -3/Research | Entered Garrison 24181 | -3/Garrison | Heavy support dispatched to Testing 24224 | -3/Garrison | Garrison Relay disabled 24290 | -3/Garrison | Spotted B-86 Titan 24353 | -3/Garrison | Heavy support dispatched to Testing 24401 | -3/Garrison | Triggered checkpoint 24432 | -3/Garrison | Destroyed B-86 Titan 24470 | -3/Garrison | Lost 7 parts (1p3n2u1w) 24505 | -3/Garrison | Triggered checkpoint 24555 | -3/Garrison | Found Hvy. Reflective Plating 24591 | -3/Garrison | Discovered new exit (range 15) 24677 | -3/Garrison | Triggered checkpoint 24677 | -3/Garrison | Garrison Relay disabled 24745 | -3/Garrison | Discovered new exit (range 13) 24784 | -3/Garrison | Entered Testing 24784 | -3/Testing | Accompanied by 1 ally 24896 | -3/Testing | Build established: Scavenger-Tank 24999 | -3/Testing | Lost 4 parts (2n2u) 25002 | -3/Testing | Destroyed 8 combat bots 25023 | -3/Testing | Core integrity fell below 50% 25029 | -3/Testing | System corruption reached 30% 25242 | -3/Testing | Found Myomer Exoskeleton 25556 | -3/Testing | Found Prototype Launcher 25556 | -3/Testing | Identified Adv. Micro-nuke Launcher 25623 | -3/Testing | Found Prototype Hackware 25638 | -3/Testing | P-80 Master assimilated allied Machinist 8b 25662 | -3/Testing | Found Prototype Device 25662 | -3/Testing | Identified Exp. Thermal Defense Suite 25784 | -3/Testing | First assault squad dispatched 25798 | -3/Testing | Identified exit to Garrison 25798 | -3/Testing | Entered Garrison 25818 | -3/Garrison | Identified Active Sensor Suite 25920 | -3/Garrison | Spotted B-86 Titan 25964 | -3/Garrison | Core integrity fell below 20% 25966 | -3/Garrison | Destroyed B-86 Titan 25988 | -3/Garrison | Lost 13 parts (2p2n4u5w) 26020 | -3/Garrison | Destroyed 14 combat bots 26159 | -3/Garrison | Lost 14 parts (2p4n2u6w) 26301 | -3/Garrison | Garrison Relay disabled 26459 | -3/Garrison | Spotted B-75 Beast 26611 | -3/Garrison | Destroyed by Y-72 Warden with Railgun Last Messages --------------- 26528_ Acquired 34 matter. 26529_ System corrupted: Energy discharge (-162). 26534_ Acquired 4 matter. 26546_ System corrupted: Matter fused (-10). 26546_ Acquired 47 matter. 26557_ Acquired 6 matter. 26564_ System corrupted: Component data lost. 26579_ System corrupted: FCS attempts to trigger Fusion Bomb Launcher. 26579_ System corrupted: Fusion Bomb Launcher misfires. 26579_ Firepult destroyed. 26579_ Destroyed Firepult. 26581_ The unstable cave ceiling collapses. 26581_ 42 Matter crushed. 26584_ Acquired Myomer Leg. 26594_ The unstable cave ceiling collapses. 26596_ System corrupted: Matter fused (-7). 26607_ System corrupted: Proton Missile Launcher failed to launch. 26608_ Penetrated by Slug. 26608_ Prc. Matter Filter destroyed. 26611_ Myomer Leg destroyed. Map ----- +----------------------------------------------------+ | | | ?????????????????????????????????????????????????? | | ?????????????????????????????????????????????????? | | ?????????????????????????????????????????????????? | | ?????????????????????????????????????????????????? | | ?????????????????????????????????????????????????? | | ?????????????????????????????????????????????????? | | ?????????????????????????????????????????????????? | | ????????????????????????????????????????????????## | | ????????????????????????????????????????????????# | | ????????????????????????????????????????????????# | | ????????????????????????????????????????????????# | | ????????????????????????????????????????????????# | | ??????????????????????????????????#####?????????# | | ??????????????????????????????????# #???###??## | | ????????????????????????????####### ##### ## ## | | ????????????????????????????# | | ????????????????????????????# | | | ????????????????????????????## #######[ ######## | | ????????????????????????????#"" ""#### [[#### ### | | ????????????????????????????########= !! " " | | ???????????????????????????????# =###### # | | ????????????????????????????#### # !#??????? | | ????????????????????????????# # [= #[ #??????? | | ????????????????????????##### # # #??????? | | ????????????????????????#@ ;# % [ #??????? | | ????????????????????????# #% #??????? | | ????????????????????????###; # % #"""#??????? | | ??????????????????????????#;s ###"""#?????? | | ??????????????????????????## ???? | | ???????????????????????????#% #########"####??? | | ???????????????????????????# Y#????????" "????? | | ???????????????????????????# # #????????# ???? | | ????????????????????######## # #????????? "##??? | | ???????????????# #????????? ?#???? | | ???????????????#h #???????????????? | | ???????????????# ################???????????????? | | ?????????????????????????????????????????????????? | | ?????????????????h???????????????????????????????? | | ?????????????????????????????????????????????????? | | ?????????????????????????????????????????????????? | | ?????????????????????????????????????????????????? | | ?????????????????????????????????????????????????? | | ?????????????????????????????????????????????????? | | ?????????????????????????????????????????????????? | | ?????????????????????????????????????????????????? | | ?????????????????????????????????????????????????? | | ?????????????????????????????????????????????????? | | ?????????????????????????????????????????????????? | | ?????????????????????????????????????????????????? | +----------------------------------------------------+ Best States ------------- Heat Dissipation 108 Coolant Potential 100 Energy Generation 39 Energy Capacity 910 Matter Stores 350 Matter Capacity 350 Sight Range 16 Robot Scan Range 20 Terrain Scan Density 10 Jamming Range 14 Additional Mass Support 9 Armor Coverage 1000 Resistance: KI 30 Resistance: TH 25 Evasion (%) 80 Core Analysis 6 Recoil Reduction 4 Matter Filtering 50 Energy Filtering 30 Offensive Hacking 20 Defensive Hacking 10 Relay Coupler Types 2 Relay Coupler Value 36 Authchip Count 5 Item Schematics ----------------- Huge Storage Unit | -10/Materials | Hacked Hcp. Storage Unit | -10/Materials | Hacked Imp. VTOL Module | -8/Materials | Scanalyzed Hacking Suite | -8/Materials | Scanalyzed Enh. Autogun | -8/Materials | Scanalyzed Med. Armor Plating | -8/Materials | Hacked Hrd. Heavy Armor Plating | -8/Materials | Scanalyzed Transmission Jammer | -8/Materials | Scanalyzed Rnf. Deuterium Engine | -8/Materials | Scanalyzed Plasma Cannon | -8/Materials | Scanalyzed Lgt. Armored Exoskeleton | -7/Factory | Hacked Imp. Powered Armor | -7/Factory | Scanalyzed Gatling Laser | -7/Factory | Scanalyzed Rnf. Fission Core | -7/Factory | Scanalyzed Weapon Cycler | -7/Factory | Scanalyzed Remote Datajack | -7/Factory | Scanalyzed Imp. Reaction Control System | -6/Factory | Scanalyzed Imp. Force Field | -3/Testing | Reported Imp. Corruption Screen | -3/Testing | Reported Imp. Diametric Drive | -3/Testing | Reported Hvy. Hardcell Cannon | -3/Testing | Reported Cld. Proton Cannon | -3/Testing | Reported Adv. EM Disruption Field | -3/Testing | Reported Nanoactuators | -3/Testing | Reported Ionic Axe | -3/Testing | Reported Enh. Coil Gun | -3/Testing | Reported Great Axe | -3/Testing | Reported Exp. Matter Compressor | -3/Testing | Archive Exp. Cooling System | -3/Testing | Archive Prc. Phase Gun | -3/Testing | Archive Adv. Remote Shield | -3/Testing | Archive Cld. Impulse Thruster | -3/Testing | Archive Exp. Power Amplifier | -3/Testing | Archive Com. Mass Driver | -3/Testing | Archive Plasma Lance | -3/Testing | Archive Robot Schematics ------------------ M-13 Machinist | -10/Materials | Hacked B-36 Bruiser | -7/Factory | Hacked Fabricated ------------ Lgt. Armored Exoskeleton | x1 | -7/Factory Lgt. Armored Exoskeleton | x1 | -7/Factory Lgt. Armored Exoskeleton | x1 | -7/Factory Lgt. Armored Exoskeleton | x1 | -7/Factory B-36 Bruiser | x3 | -6/Factory | Authchip B-36 Bruiser | x3 | -6/Factory | Authchip B-36 Bruiser | x3 | -6/Factory | Authchip Remote Datajack | x2 | -6/Factory Lgt. Armored Exoskeleton | x1 | -5/Factory | Authchip M-13 Machinist | x1 | -3/Research | Authchip Lgt. Armored Exoskeleton | x1 | -3/Research | Authchip Imp. Powered Armor | x1 | -3/Research | Authchip Repaired ---------- Enh. Autogun | 99% | -8/Materials | Broken Imp. VTOL Module | 99% | -8/Materials | Broken Hvy. Treads | 5% | -7/Factory Imp. Powered Armor | 16% | -7/Factory Alien Tech Used ----------------- None Achievements -------------- None Challenges ------------ None Game ------ Seed TransportFlightBoregun Manual? 0 Play Time 05:34:46 Cumulative 831.2 hours Start 2025.08.25 @ 00:12:03 End 2025.08.28 @ 14:29:35 Sessions 9 Manual Loads 0 Difficulty Rogue Special Mode None Game No. 314 Rogue 310 Adventurer 4 Explorer 0 Win Type - Total 15 Types 9/1/1/1/0/1/0/0/1/1 Lore% 95 Gallery% 90 Achievement% 87 Wizard Run 0 Options --------- Layout 0 ASCII 0 Keyboard 0 Movement Numpad Keybinds 0 Fullscreen 2 Font 18/CogNarrow Map View 76x50 Zoom Use 0% Tactical HUD 1 Map Filters NONE Filters NONE Steam 1 RUN: 4bae9436-d741-485c-b361-e5a1da13fa23